Cogmind - Beta 9.1 @@@ ROGUE MODE // 2019.11.08 @ 02:54:50 Player: Pitt Result: Destroyed by Y-54 Guardian with Gatling Laser Performance ------------- Evolutions (3) 1500 Regions Visited (7) 1400 Robots Destroyed (55) 275 Value Destroyed (1096) 1096 Prototype IDs (2) 40 Alien Tech Used (0) 0 Bonus (26) 26 TOTAL SCORE: 4337 Bonus ------- High Alert Combat Kills 26 Cogmind --------- Core Integrity 0/700 Matter 6/300 Energy 76/100 System Corruption 4% Temperature Cool (6) Location -7/Factory Parts ------- Power (2) Propulsion (4) Utility (4) Weapon (3) Inventory (4) Linear Gravjet Improved Sensor Array Improved Terrain Scanner Improved Melee Analysis Suite Peak State ------------ Power (None) Propulsion Medium Treads Airjet Linear Gravjet Utility Advanced Weight Redist. System Seismic Analyzer System Backup Module Improved Reclamation Unit Weapon Mini Assault Cannon Inventory Improved Sensor Array Improved Terrain Scanner Improved Melee Analysis Suite [Rating: 30] Favorites ----------- Power Ion Engine Engine Ion Engine Power Core Light Nuclear Core Propulsion Aluminum Leg Treads Medium Treads Leg Aluminum Leg Wheel Wheel Hover Unit Airjet Utility Seismic Analyzer Device Advanced Weight Redist. System Storage Large Storage Unit Processor Seismic Analyzer Protection Medium Armor Plating Weapon Medium Laser Energy Gun Medium Laser Ballistic Gun High-powered Shotgun Ballistic Cannon Mini Assault Cannon Launcher Mini Grenade Launcher Special Weapon Mining Laser Impact Weapon Great Maul Build | -11 -10 -10 -9 -8 -7 -7 -7 ------- Run | Scr Mat Min Mat Mat Fac Was Fac Slots Evolved 6 | . . . 2 2 2 . . Power 1 | . . . . 1 . . . Propulsion 2 | . . . . 1 1 . . Utility 2 | . . . 2 . . . . Weapon 1 | . . . . . 1 . . Parts Attached 55 | 7 4 5 5 9 9 1 15 Power 7 | 1 . 1 . 2 . . 3 Engine 6 | 1 . . . 2 . . 3 Core 1 | . . 1 . . . . . Reactor . | . . . . . . . . Propulsion 13 | 2 . 2 . 1 2 1 5 Treads 1 | . . . . . 1 . . Leg 5 | 2 . 2 . 1 . . . Wheel 5 | . . . . . . . 5 Hover 2 | . . . . . 1 1 . Flight . | . . . . . . . . Utility 17 | 2 2 . 3 2 5 . 3 Device 9 | . . . 2 1 5 . 1 Storage 4 | 2 1 . . . . . 1 Processor 1 | . . . 1 . . . . Hackware . | . . . . . . . . Protection 3 | . 1 . . 1 . . 1 Artifact . | . . . . . . . . Weapon 18 | 2 2 2 2 4 2 . 4 Energy Gun 9 | 2 1 1 1 2 . . 2 Energy Cannon . | . . . . . . . . Ballistic Gun 1 | . . . . . . . 1 Ballistic Cannon 1 | . . . . . 1 . . Launcher 4 | . 1 1 . 1 1 . . Special Weapon 2 | . . . 1 1 . . . Impact Weapon 1 | . . . . . . . 1 Slashing Weapon . | . . . . . . . . Piercing Weapon . | . . . . . . . . Special Melee Weapon . | . . . . . . . . Unidentified Prototypes 2 | . . . . 1 1 . . Parts Lost 31 | . . 4 4 4 4 1 14 Power 6 | . . 1 1 1 1 . 2 Propulsion 8 | . . 1 1 1 . 1 4 Utility 6 | . . 1 . . 2 . 3 Weapon 11 | . . 1 2 2 1 . 5 Highest Loss Streak 7 | . . 4 3 4 4 1 7 Average Slot Usage (%) 69 | . 95 96 92 74 36 49 51 Engine 6 | . 14 12 . 8 5 . 3 Core 1 | . . . 11 . . . . Treads 1 | . . . . . 4 5 . Leg 12 | . 28 27 21 16 . . . Wheel 1 | . . . . . . . 5 Device 11 | . . . 21 16 16 21 13 Storage 8 | . 21 14 11 8 . . 2 Processor 5 | . . . 11 9 7 7 6 Protection 2 | . 1 11 . . . . 1 Energy Gun 9 | . 27 21 1 6 . . 4 Ballistic Cannon 2 | . . . . . . 7 6 Launcher 2 | . . 6 11 1 . . . Special Weapon 1 | . . . 2 7 . . . Naked Turns 9 | . . . . . . . 9 Heaviest Build 32 | 17 32 32 26 26 8 6 29 Greatest Support 46 | 20 20 20 20 20 28 28 46 Greatest Overweight (x) 6 | 3 1 2 2 2 2 1 6 Average Overweight (x) . | . . 1 1 . . . 1 Largest Inventory Capacity 12 | 8 12 10 10 10 4 4 4 Average Capacity 7 | 7 8 10 10 9 4 4 4 Most Carried 10 | 8 10 10 9 10 4 4 4 Average Carried 6 | 5 8 9 8 8 3 3 4 Final Capacity 10 | 8 10 10 10 4 4 4 4 Final Carried 10 | 8 10 10 8 4 3 4 4 Class Distribution -------------------- 72% | Mutant 19% | Scavenger-Mutant 7% | Scavenger-Skirmisher Dominant Class ---------------- Mutant | -10/Materials Mutant | -10/Mines Scavenger-Mutant | -9/Materials Scavenger-Skirmisher | -8/Materials Mutant | -7/Factory Mutant | -7/Waste Mutant | -7/Factory Resources | -11 -10 -10 -9 -8 -7 -7 -7 ----------- Run | Scr Mat Min Mat Mat Fac Was Fac Matter Collected 899 | 270 . 148 132 37 . . 312 Remotely . | . . . . . . . . Salvage Created 1325 | 161 163 171 169 220 . . 441 Parts 101 | 12 12 13 24 21 . . 19 Haulers Intercepted 1 | . . . . 1 . . . Recyclers Shooed 3 | . . 1 . . . . 2 Parts Field Recycled . | . . . . . . . . Retrieved Matter . | . . . . . . . . Parts Self-Destructed . | . . . . . . . . Prevented . | . . . . . . . . Kills | -11 -10 -10 -9 -8 -7 -7 -7 ------- Run | Scr Mat Min Mat Mat Fac Was Fac Combat Hostiles Destroyed 32 | . 7 8 8 5 1 . 3 Guns 10 | . 3 4 . 2 . . 1 Cannons 2 | . . . . . . . 2 AOE 20 | . 4 4 8 3 1 . . Classes Destroyed 11 | 2 3 1 2 1 1 . 1 Worker 8 | . . . . . . . 8 Builder 5 | . . 1 1 3 . . . Tunneler 4 | 4 . . . . . . . Hauler 1 | . . . . 1 . . . Recycler 3 | 1 . . . . . . 2 Watcher 2 | . 1 . 1 . . . . Swarmer 14 | . 3 5 4 2 . . . Grunt 14 | . 4 3 2 3 . . 2 Brawler 1 | . . . 1 . . . . Duelist 1 | . . . 1 . . . . Programmer 2 | . . . . . 1 . 1 Best Kill Streak 6 | 2 6 6 6 6 1 . 4 Combat Bots Only 5 | . 5 5 4 3 1 . 1 Max Kills in Single Turn 3 | 1 3 2 3 3 1 . 1 Gunslinging . | . . . . . . . . Exploded 3 | . 3 1 2 1 1 . . Melee . | . . . . . . . . Uniques/NPCs Destroyed . | . . . . . . . . Combat | -11 -10 -10 -9 -8 -7 -7 -7 -------- Run | Scr Mat Min Mat Mat Fac Was Fac Damage Taken 3734 | . 187 459 511 553 314 56 1654 Core 1268 | . 36 129 196 205 74 . 628 Absorbed by Shields . | . . . . . . . . Core Remaining (%) 61 | 100 . 34 51 62 . . . Volleys Fired 162 | 12 15 24 15 21 9 . 66 Largest 2 | 2 2 2 1 1 1 . 2 Hottest 104 | 100 100 100 100 100 33 . 104 Shots Fired 198 | 24 26 29 15 21 9 . 74 Gun 123 | 24 22 25 2 16 . . 34 Cannon 40 | . . . . . . . 40 Launcher 33 | . 4 4 12 4 9 . . Special 2 | . . . 1 1 . . . Kinetic 43 | . . . . . . . 43 Thermal 98 | 24 22 25 3 17 . . 7 Explosive 33 | . 4 4 12 4 9 . . Electromagnetic 24 | . . . . . . . 24 Robot Hit Streak 11 | 11 4 11 2 10 7 . 10 Robot Miss Streak 5 | 5 2 2 3 2 1 . 2 Penetration Max . | . . . . . . . . Secondary Targets 1 | . 1 . . . . . . Max Gunslinging Chain 1 | . 1 . . . . . . Shots Hit Robots 132 | 14 15 22 3 17 7 . 54 Core Hits 87 | 6 16 16 14 13 4 . 18 Critical Hits 3 | . . . . . . . 3 Critical Kills . | . . . . . . . . Critical Parts Destroyed 3 | . . . . . . . 3 Melee Attacks 4 | . . . . . . . 4 Impact 4 | . . . . . . . 4 Slashing . | . . . . . . . . Piercing . | . . . . . . . . Sneak Attacks . | . . . . . . . . Combat Hostiles . | . . . . . . . . Follow-up Attacks . | . . . . . . . . Damage Inflicted 4288 | 189 488 574 760 687 254 . 1336 Guns 1246 | 189 199 277 . 227 . . 354 Cannons 895 | . . . . . . . 895 Explosions 2079 | . 289 297 755 460 254 . 24 Melee 63 | . . . . . . . 63 Ramming 5 | . . . 5 . . . . Kinetic 926 | . . . . . . . 926 Thermal 1006 | 189 199 277 . 227 . . 114 Explosive 2055 | . 289 297 755 460 254 . . Electromagnetic 233 | . . . . . . . 233 Impact 63 | . . . . . . . 63 Slashing . | . . . . . . . . Piercing . | . . . . . . . . Highest Corruption 4 | . . . . . 1 1 4 Average Corruption 1 | . . . . . 1 1 1 Corruption Purged . | . . . . . . . . Effects 7 | . . . . . 1 1 5 Message Errors 3 | . . . . . 1 1 1 Energy Discharges 2 | . . . . . . . 2 Targeting Errors 2 | . . . . . . . 2 Overload Shots . | . . . . . . . . Overflow Damage 157 | . . 30 11 12 50 . 54 Projectiles 50 | . . . . . . . 50 Explosions 107 | . . 30 11 12 50 . 4 Melee . | . . . . . . . . Knockbacks 10 | . . . . . . . 10 Impact 1 | . . . . . . . 1 Kinetic 9 | . . . . . . . 9 Secondary . | . . . . . . . . Self-Inflicted Damage 264 | . 14 38 13 . 199 . . Shots 10 | . 1 1 1 . 7 . . Rammed . | . . . . . . . . Targets Rammed 1 | . . . 1 . . . . Kicked 1 | . . . 1 . . . . Crushed . | . . . . . . . . Highest Temperature 285 | 117 264 285 16 50 . . 63 Average Temperature 62 | 43 112 93 10 19 . . 15 Received Heat Transfer 1323 | . 93 153 219 117 . . 741 Effects 1 | . . 1 . . . . . Energy Bleed 1 | . . 1 . . . . . Siege Activations . | . . . . . . . . Robots Corrupted . | . . . . . . . . Combat Hostiles . | . . . . . . . . Parts Fried 1 | . . . . . . . 1 Impact Corruptions . | . . . . . . . . Robots Melted . | . . . . . . . . Combat Hostiles . | . . . . . . . . Parts Melted 6 | . 1 5 . . . . . Heat Transferred 2714 | 555 592 814 . 481 . . 272 Parts Sabotaged . | . . . . . . . . Parts Stolen . | . . . . . . . . Parts Stripped . | . . . . . . . . Power Chain Reactions 1 | . . . . . . . 1 Missiles Intercepted . | . . . . . . . . Alert | -11 -10 -10 -9 -8 -7 -7 -7 ------- Run | Scr Mat Min Mat Mat Fac Was Fac Peak Influence 456 | 25 227 268 293 257 147 50 456 Average Influence 118 | 8 93 154 176 147 118 48 129 Maximum Alert Level 2 | . 1 1 1 1 . . 2 Low Security (%) 79 | . . . . . . . . Level 1 15 | . . . . . . . . Level 2 4 | . . . . . . . . Level 3 . | . . . . . . . . Level 4 . | . . . . . . . . Level 5 . | . . . . . . . . High Security . | . . . . . . . . Max Security . | . . . . . . . . Squads Dispatched 10 | . . . 1 1 1 . 7 Investigation 3 | . . . . . . . 3 Extermination 2 | . . . . . 1 . 1 Reinforcement 3 | . . . 1 1 . . 1 Assault . | . . . . . . . . Garrison 2 | . . . . . . . 2 Intercept . | . . . . . . . . Construction Impeded 3 | . . . 1 1 . . 1 Haulers Reinforced . | . . . . . . . . Stealth | -11 -10 -10 -9 -8 -7 -7 -7 --------- Run | Scr Mat Min Mat Mat Fac Was Fac Distress Signals 8 | . 1 . 3 4 . . . Communications Jammed 19 | . . . . . 19 . . Distress Signals 19 | . . . . . 19 . . Times Spotted 81 | . 10 11 20 15 2 6 17 Peak Tracking Total 10 | . 4 4 8 8 2 6 10 Tactical Retreats 10 | . . 1 2 4 . . 3 Traps | -11 -10 -10 -9 -8 -7 -7 -7 ------- Run | Scr Mat Min Mat Mat Fac Was Fac Traps Triggered 1 | . . . . . 1 . . Indirectly . | . . . . . . . . Trap Hack Attempts . | . . . . . . . . Triggered . | . . . . . . . . Disarmed . | . . . . . . . . Reprogrammed 1 | . . . 1 . . . . Reused 1 | . . . 1 . . . . Traps Extracted . | . . . . . . . . Installed . | . . . . . . . . Triggered 1 | . . . 1 . . . . Machines | -11 -10 -10 -9 -8 -7 -7 -7 ---------- Run | Scr Mat Min Mat Mat Fac Was Fac Machines Disabled 6 | . 1 1 2 . 1 . 1 Max in Single Turn 1 | . 1 1 1 . 1 . 1 Machines Sabotaged . | . . . . . . . . Garrisons Compromised . | . . . . . . . . Overloaded Fab Kills . | . . . . . . . . Fab Network Shutdowns 1 | . . . . . . . 1 Hacking | -11 -10 -10 -9 -8 -7 -7 -7 --------- Run | Scr Mat Min Mat Mat Fac Was Fac Machines Accessed 10 | . 4 . 1 1 . . 4 Terminals 7 | . 4 . 1 1 . . 1 Fabricators 1 | . . . . . . . 1 Repair Stations . | . . . . . . . . Recycling Units 1 | . . . . . . . 1 Scanalyzers . | . . . . . . . . Garrison Access 1 | . . . . . . . 1 Total Hacks 27 | . 7 . 4 2 . . 14 Successful 14 | . 5 . 3 1 . . 5 Failed 13 | . 2 . 1 1 . . 9 Catastrophic 6 | . 1 . . 1 . . 4 Database Lockouts . | . . . . . . . . Manual . | . . . . . . . . Terminals 19 | . 7 . 4 2 . . 6 Fabricators 2 | . . . . . . . 2 Repair Stations . | . . . . . . . . Recycling Units 2 | . . . . . . . 2 Scanalyzers . | . . . . . . . . Garrison Access 4 | . . . . . . . 4 Terminal Hacks 12 | . 5 . 3 1 . . 3 Terminal Index 1 | . 1 . . . . . . Recycling Unit Index 1 | . 1 . . . . . . Locate Traps 2 | . . . 1 . . . 1 Reprogram Traps 1 | . . . 1 . . . . Surveillance Status 1 | . 1 . . . . . . Patrol Status 1 | . . . . 1 . . . Registered Components 2 | . 1 . . . . . 1 Zone Layout 3 | . 1 . 1 . . . 1 Fabricator Hacks 2 | . . . . . . . 2 Network Status 1 | . . . . . . . 1 Build 1 | . . . . . . . 1 Repair Station Hacks . | . . . . . . . . Recycling Unit Hacks . | . . . . . . . . Scanalyzer . | . . . . . . . . Garrison Access Hacks . | . . . . . . . . Unauthorized Hacks . | . . . . . . . . Terminals . | . . . . . . . . Fabricators . | . . . . . . . . Repair Stations . | . . . . . . . . Recycling Units . | . . . . . . . . Scanalyzers . | . . . . . . . . Garrison Access . | . . . . . . . . Data Cores Recovered . | . . . . . . . . Used . | . . . . . . . . Hacking Detections 5 | . 1 . . . . . 4 Full Trace Events 3 | . . . . . . . 3 Feedback Events . | . . . . . . . . Feedback Blocked . | . . . . . . . . Robot Schematics Acquired . | . . . . . . . . Robots Built . | . . . . . . . . Matter . | . . . . . . . . Time . | . . . . . . . . Total Robot Build Rating . | . . . . . . . . Part Schematics Acquired . | . . . . . . . . Parts Built 1 | . . . . . . . 1 Matter 168 | . . . . . . . 168 Time 84 | . . . . . . . 84 Total Part Build Rating 4 | . . . . . . . 4 Parts Repaired . | . . . . . . . . Time . | . . . . . . . . Parts Recycled . | . . . . . . . . Recycled Matter . | . . . . . . . . Retrieved Matter . | . . . . . . . . Retrieved Components . | . . . . . . . . Parts Scanalyzed . | . . . . . . . . Part Schematics Acquired . | . . . . . . . . Parts Damaged . | . . . . . . . . Bothacking | -11 -10 -10 -9 -8 -7 -7 -7 ------------ Run | Scr Mat Min Mat Mat Fac Was Fac Used RIF Installer . | . . . . . . . . Robots Hacked . | . . . . . . . . Non-combat . | . . . . . . . . Combat . | . . . . . . . . Robot Hacks Applied . | . . . . . . . . Relay Couplers Released . | . . . . . . . . Robots Rewired . | . . . . . . . . Allies Hacked . | . . . . . . . . Hacks Repelled . | . . . . . . . . Allies | -11 -10 -10 -9 -8 -7 -7 -7 -------- Run | Scr Mat Min Mat Mat Fac Was Fac Total Allies . | . . . . . . . . Largest Group . | . . . . . . . . Highest-Rated Group . | . . . . . . . . Highest-Rated Ally . | . . . . . . . . Total Orders . | . . . . . . . . Ally Attacks . | . . . . . . . . Total Damage . | . . . . . . . . Kills . | . . . . . . . . Allies Corrupted . | . . . . . . . . Allies Melted . | . . . . . . . . Intel | -11 -10 -10 -9 -8 -7 -7 -7 ------- Run | Scr Mat Min Mat Mat Fac Was Fac Robot Analysis Total . | . . . . . . . . Derelict Logs Recovered . | . . . . . . . . Drone Launches . | . . . . . . . . Drone Recoveries . | . . . . . . . . Exploration | -11 -10 -10 -9 -8 -7 -7 -7 ------------- Run | Scr Mat Min Mat Mat Fac Was Fac Turns Passed 2715 | 279 301 411 283 326 366 115 634 Spaces Moved 1425 | 185 192 215 162 150 220 79 222 Core 272 | 13 . . . 27 77 22 133 Treads 200 | . . . . . 143 57 . Legs 864 | 172 192 215 162 123 . . . Wheels 89 | . . . . . . . 89 Hover . | . . . . . . . . Flight . | . . . . . . . . Fastest Speed 50 | 50 120 150 150 50 100 100 50 Average Speed 142 | 119 130 150 150 132 152 143 155 Slowest Speed 350 | 200 150 180 180 180 160 160 350 Overloaded Moves . | . . . . . . . . Propulsion Burnouts . | . . . . . . . . Robots Hopped . | . . . . . . . . Cave-ins Triggered . | . . . . . . . . Exploration Rate (%) 27 | 11 37 47 25 18 7 67 7 Regions Visited 7 Branch Regions 1 Pre-discovered Areas . | . . . . . . . . Known Exits Taken . | . . . . . . . . Unknown Exits Taken 5 | 1 1 1 1 1 . . . Scrap Searched . | . . . . . . . . Spaces Dug 2 | . . . 1 1 . . . Terrain Destroyed 212 | . 16 37 98 32 23 . 6 Melee . | . . . . . . . . Projectile 4 | . . . 1 1 . . 2 AOE 208 | . 16 37 97 31 23 . 4 Actions | -11 -10 -10 -9 -8 -7 -7 -7 --------- Run | Scr Mat Min Mat Mat Fac Was Fac Total 1885 | 217 217 273 183 253 239 80 423 Wait 202 | . . 26 . 65 . . 111 Move 1419 | 184 191 214 161 149 220 78 222 Hop . | . . . . . . . . Pick Up 23 | 11 3 2 1 5 1 . . Fast Attach 34 | 7 1 2 . 2 7 1 14 Attach 9 | . . 1 3 3 2 . . Detach 3 | . 1 . . . . 1 1 Swap 12 | . 3 2 2 4 . . 1 Drop 16 | 3 3 2 . 4 . . 4 Fire 162 | 12 15 24 15 21 9 . 66 Melee 4 | . . . . . . . 4 Ram . | . . . . . . . . Kick 1 | . . . 1 . . . . Crush . | . . . . . . . . Escape Stasis . | . . . . . . . . Rewire . | . . . . . . . . Trap . | . . . . . . . . Miscellaneous . | . . . . . . . . Route ------- -11/Scrapyard -10/Materials -10/Mines -9/Materials -8/Materials -7/Factory -7/Waste -7/Factory History --------- Turn | Location | Event 18 | -11/Scrapyard | Discovered new exit (range 16) 280 | -11/Scrapyard | Entered Materials 316 | -10/Materials | Build established: Mutant 532 | -10/Materials | Discovered new exit (range 13) 581 | -10/Materials | Entered Mines 681 | -10/Mines | Received a Rocket Launcher from a helpful Derelict 935 | -10/Mines | Discovered new exit (range 11) 961 | -10/Mines | Core integrity fell below 50% 987 | -10/Mines | Lost 4 parts (1p1n1u1w) 992 | -10/Mines | Entered Materials 992 | -9/Materials | Evolved 2 slots: Utility x2 1269 | -9/Materials | Discovered new exit (range 5) 1275 | -9/Materials | Entered another Materials area 1275 | -8/Materials | Evolved 2 slots: Power x1, Propulsion x1 1302 | -8/Materials | Lost 3 parts (1p1n1w) 1597 | -8/Materials | Discovered new exit (range 6) 1601 | -8/Materials | Entered Factory 1601 | -7/Factory | Evolved 2 slots: Propulsion x1, Weapon x1 1613 | -7/Factory | Lost 4 parts (1p1n2w) 1905 | -7/Factory | Lost 4 parts (1p2u1w) 1967 | -7/Factory | Sucked down chute 1967 | -7/Factory | Entered Waste 1992 | -7/Waste | Spotted C-40 Crusher 1997 | -7/Waste | Spotted C-40 Crusher 2017 | -7/Waste | Spotted C-40 Crusher 2021 | -7/Waste | Spotted C-40 Crusher 2051 | -7/Waste | Spotted C-40 Crusher 2060 | -7/Waste | Crushed by Compactor (1 part destroyed, 2 dropped) 2061 | -7/Waste | Spotted C-40 Crusher 2069 | -7/Waste | Discovered new exit (range 12) 2082 | -7/Waste | Entered Factory 2180 | -7/Factory | Fabricated Arc Projector (x1) 2540 | -7/Factory | Lost 7 parts (2p4n1w) 2547 | -7/Factory | Garrison activated, responded to threat 2574 | -7/Factory | Local fabrication network quarantined 2590 | -7/Factory | Core integrity fell below 50% 2623 | -7/Factory | Lost 4 parts (3u1w) 2661 | -7/Factory | Core integrity fell below 20% 2666 | -7/Factory | Garrison activated, responded to threat 2716 | -7/Factory | Destroyed by Y-54 Guardian with Gatling Laser Last Messages --------------- 02676_ ALERT: Suspicious activity at Recycling Unit F006. Dispatching Investigation squad. 02677_ K-01 Serf collects debris. 02681_ R-06 Scavenger inserts Aluminum Leg into recycling unit. 02681_ K-01 Serf collects debris. 02684_ R-06 Scavenger inserts Aluminum Leg into recycling unit. 02685_ K-01 Serf collects debris. 02687_ R-06 Scavenger inserts Imp. Heat Sink into recycling unit. 02690_ R-06 Scavenger inserts Carbon-fiber Leg into recycling unit. 02692_ Mni. Assault Cannon destroyed. 02694_ R-06 Scavenger collects Target Analyzer. 02699_ R-06 Scavenger collects Imp. Heat Sink. 02701_ Beam Rifle destroyed. 02702_ R-06 Scavenger collects Imp. Heat Sink. 02705_ K-01 Serf cleans the Recycling Unit. 02707_ Discarded Seismic Analyzer. 02707_ Dropped Lgt. Angular Momentum Engine. 02707_ Hpw. Shotgun destroyed. 02711_ System corrupted: Energy discharge (-39). 02714_ U-05 Engineer lays Concrete. Map ----- +----------------------------------------------------+ | ????????????????????????????????????????????# | | ????????????????????????????????????????????# | | ????????????????????????????????????????????# | | ?????????????????????????????????????#??????# | | ?????????????????????????????????????# ###### | | ?????????????????????????????????????# | | ?????????????????????????????????????# | | ?????????????????????????????????????# | | ?????????????????????????????????????# | | ?????????????????????????????????????# | | ???????????????????????????????? ????# ####### % | | ?????????????????????????????### ##### #?????# | | ?????????????????????????????# #?????# | | ?????????????????????????????# #???### % | | ?????????????????????????????# #??## # ### | | ?????????????????????????????# #??# # # # | | ?????????????????????????????# #??## #%# # | | ?????????????????????????????# #######/### | | ?????????????????????????????# ## % %# | | ?????????????????????????????+ ## # | | ?????????????????????????????# ## % %! # | | ?????????????????????????????# ## %! # | | ?????????????????????????????# ## + | | ?????????????????????????????# ## # | | ????????????????????????###### ggg # | | ????????????????#########@ #### ""Y"" # | | ????????? u #??# """"" # | | ????????????????### ##### [!! #??########## | | ????????????????????????# Y [!! ???????? | | ????????????????????????# u" F" [!! ?????? | | ????????????????????????# a"""" ?????? | | ????????????????????????# Y ????? | | ????????????????????????# ##???? | | ???????????????????????# ###### #????? | | ???????????????????????# #????# #????? | | ??????????????????????? #????# #????? | | ???????????????????????# #????# #????? | | ???????????????????????# #????# #????? | | ???????????????????????#######????? ??????? | | ??????????????????????????????????? ?????????? | | ??????????????????????????????????? ??????????? | | ?????????????????????????????????????????????????? | | ???????????????!?????????????????????????????????? | | ?????????????????????????????????????????????????? | | ?????????????????????????????????????????????????? | | ?????????????????????????????????????????????????? | | ?????????????????????????????????????????????????? | | ?????????????????????????????????????????????????? | | ?????????????????????????????????????????????????? | | ?????????????????????????????????????????????????? | +----------------------------------------------------+ Best States ------------- Heat Dissipation 34 Energy Generation 18 Energy Capacity 250 Matter Stores 300 Matter Capacity 350 Sight Range 16 Robot Scan Range 20 Terrain Scan Range 16 Terrain Scan Density 60 Jamming Range 8 Armor Coverage 225 Reclamation Efficiency 15 Evasion (%) 50 Recoil Reduction 1 Particle Charging 15 Item Schematics ----------------- None Robot Schematics ------------------ None Fabricated ------------ Arc Projector | x1 | -7/Factory | Preloaded Alien Tech Used ----------------- None Achievements -------------- Total Silence Challenges ------------ None Game ------ Seed SurveybotMediumExoskeleton Manual? 0 Play Time 00:31:28 Cumulative 40.2 hours Start 2019.11.08 @ 01:20:59 End 2019.11.08 @ 02:54:50 Sessions 2 Manual Loads 0 Difficulty Rogue Special Mode None Game No. 79 Rogue 79 Adventurer 0 Explorer 0 Win Type - Total 0 Types 0/0/0/0/0/0/0 Lore% 23 Gallery% 41 Achievement% 23 Wizard Run 0 Options --------- ASCII 0 Keyboard 0 Movement Mouse Keybinds 0 Fullscreen 1 Font 12/Smallcaps Map View 83x54 Tactical HUD 1 Map Filters NONE Filters NONE Steam 1 RUN: b3af9c00-b9fc-40b6-97b5-ef843d6a2727